[Event "*** Titled Tuesday Blitz"]
[Site "Chess.com"]
[Date "2018.05.01"]
[Round "3"]
[White "belisarius64"]
[Black "dukicz123"]
[Result "1/2-1/2"]
[WhiteElo "2461"]
[BlackElo "2331"]
[TimeControl "180+2"]
[EndTime "13:43:21 PDT"]
[Termination "Game drawn - insufficient material"]

1. d4 {[%clk 0:03:01.9]} 1... Nf6 {[%clk 0:03:00.6]} 2. Nf3 {[%clk 0:03:03.5]}
2... g6 {[%clk 0:03:01.7]} 3. Bf4 {[%clk 0:03:04.5]} 3... Bg7 {[%clk 0:03:02.8]}
4. Nbd2 {[%clk 0:03:06.1]} 4... d5 {[%clk 0:03:01.2]} 5. e3 {[%clk 0:03:06.6]}
5... O-O {[%clk 0:03:00.1]} 6. Be2 {[%clk 0:03:07.9]} 6... Nbd7 {[%clk
0:02:55.6]} 7. O-O {[%clk 0:03:09.2]} 7... Nh5 {[%clk 0:02:44.1]} 8. Bg5 {[%clk
0:03:09.3]} 8... h6 {[%clk 0:02:45.3]} 9. Bh4 {[%clk 0:03:09.8]} 9... g5 {[%clk
0:02:46.1]} 10. Ne1 {[%clk 0:03:11.3]} 10... Nhf6 {[%clk 0:02:34.7]} 11. Bg3
{[%clk 0:03:08.5]} 11... c6 {[%clk 0:02:34.8]} 12. c4 {[%clk 0:03:08.7]} 12...
dxc4 {[%clk 0:02:15.1]} 13. Nxc4 {[%clk 0:03:06.5]} 13... Nb6 {[%clk 0:02:14.4]}
14. Rc1 {[%clk 0:03:04.7]} 14... Bf5 {[%clk 0:02:14.2]} 15. f3 {[%clk
0:03:00.1]} 15... Bg6 {[%clk 0:01:55.3]} 16. e4 {[%clk 0:02:56.1]} 16... Nxc4
{[%clk 0:01:41.2]} 17. Bxc4 {[%clk 0:02:56.2]} 17... Nh5 {[%clk 0:01:38.6]} 18.
Bf2 {[%clk 0:02:57.2]} 18... Nf4 {[%clk 0:01:39.9]} 19. a4 {[%clk 0:02:53.1]}
19... Qd7 {[%clk 0:01:33]} 20. Kh1 {[%clk 0:02:50.9]} 20... Rad8 {[%clk
0:01:32.3]} 21. Nc2 {[%clk 0:02:52.5]} 21... e5 {[%clk 0:01:28.7]} 22. dxe5
{[%clk 0:02:43.8]} 22... Bxe5 {[%clk 0:01:23.2]} 23. Qxd7 {[%clk 0:02:43.8]}
23... Rxd7 {[%clk 0:01:25]} 24. Bxa7 {[%clk 0:02:43.6]} 24... Bxb2 {[%clk
0:01:25.7]} 25. Rb1 {[%clk 0:02:45.1]} 25... Be5 {[%clk 0:01:10.3]} 26. g3
{[%clk 0:02:39.8]} 26... Nh5 {[%clk 0:00:57.5]} 27. Be3 {[%clk 0:02:39.2]} 27...
Ra8 {[%clk 0:00:50.3]} 28. f4 {[%clk 0:02:37.7]} 28... Bxe4+ {[%clk 0:00:46.2]}
29. Kg1 {[%clk 0:02:37.3]} 29... gxf4 {[%clk 0:00:32.4]} 30. gxf4 {[%clk
0:02:37.2]} 30... Bf6 {[%clk 0:00:32.6]} 31. Rbc1 {[%clk 0:02:32.7]} 31... Bb2
{[%clk 0:00:32.9]} 32. Rb1 {[%clk 0:02:32.9]} 32... Bf6 {[%clk 0:00:33]} 33.
Rbc1 {[%clk 0:02:33.8]} 33... Kh7 {[%clk 0:00:34.3]} 34. Ne1 {[%clk 0:02:13.5]}
34... Rxa4 {[%clk 0:00:26.2]} 35. Be2 {[%clk 0:02:14.9]} 35... Ng7 {[%clk
0:00:13.9]} 36. Nf3 {[%clk 0:02:08.7]} 36... Nf5 {[%clk 0:00:15]} 37. Bf2 {[%clk
0:02:08.4]} 37... Ra2 {[%clk 0:00:15.4]} 38. Bc4 {[%clk 0:02:00.4]} 38... Ra3
{[%clk 0:00:16.7]} 39. Ne5 {[%clk 0:01:58.5]} 39... Rd2 {[%clk 0:00:13.4]} 40.
Bxf7 {[%clk 0:01:55]} 40... Nh4 {[%clk 0:00:14.3]} 41. Rce1 {[%clk 0:01:45.8]}
41... Bd5 {[%clk 0:00:13]} 42. Bxd5 {[%clk 0:01:44]} 42... Rxd5 {[%clk
0:00:14.2]} 43. Rb1 {[%clk 0:01:35]} 43... b5 {[%clk 0:00:03.1]} 44. Nxc6 {[%clk
0:01:35.8]} 44... Nf3+ {[%clk 0:00:04.5]} 45. Kg2 {[%clk 0:01:36.7]} 45... Nd2
{[%clk 0:00:06.1]} 46. Rfd1 {[%clk 0:01:36.5]} 46... Rad3 {[%clk 0:00:06]} 47.
Rbc1 {[%clk 0:01:25.7]} 47... Nb3 {[%clk 0:00:07.1]} 48. Rxd3 {[%clk 0:01:26.1]}
48... Rxd3 {[%clk 0:00:09]} 49. Rc2 {[%clk 0:01:25.2]} 49... Rc3 {[%clk
0:00:09.3]} 50. Rb2 {[%clk 0:01:19.4]} 50... Rd3 {[%clk 0:00:05.5]} 51. Rb1
{[%clk 0:01:18.7]} 51... Nd2 {[%clk 0:00:05.7]} 52. Rxb5 {[%clk 0:01:18.5]}
52... Ne4 {[%clk 0:00:05.4]} 53. Ba7 {[%clk 0:01:15]} 53... Rd2+ {[%clk
0:00:06.4]} 54. Kf3 {[%clk 0:01:15.9]} 54... Nc3 {[%clk 0:00:07.6]} 55. Rb7+
{[%clk 0:01:16.3]} 55... Kg6 {[%clk 0:00:08.4]} 56. Ne5+ {[%clk 0:01:16.7]}
56... Kf5 {[%clk 0:00:09.1]} 57. Ng4 {[%clk 0:01:14.2]} 57... Rd3+ {[%clk
0:00:08.6]} 58. Ne3+ {[%clk 0:01:15.6]} 58... Kg6 {[%clk 0:00:09.1]} 59. Bc5
{[%clk 0:01:04.8]} 59... Rd8 {[%clk 0:00:05.6]} 60. Rb6 {[%clk 0:01:04.4]} 60...
Kg7 {[%clk 0:00:05.3]} 61. Nf5+ {[%clk 0:01:02.7]} 61... Kf7 {[%clk 0:00:05.5]}
62. Nxh6+ {[%clk 0:01:02.9]} 62... Kg7 {[%clk 0:00:06.1]} 63. Nf5+ {[%clk
0:01:04.1]} 63... Kf7 {[%clk 0:00:07.4]} 64. Kg4 {[%clk 0:01:02]} 64... Ne4
{[%clk 0:00:06.8]} 65. Ba3 {[%clk 0:00:55.8]} 65... Rg8+ {[%clk 0:00:07.4]} 66.
Kf3 {[%clk 0:00:56.3]} 66... Nd2+ {[%clk 0:00:08.7]} 67. Ke3 {[%clk 0:00:57.3]}
67... Nc4+ {[%clk 0:00:09.8]} 68. Ke4 {[%clk 0:00:57.5]} 68... Nxb6 {[%clk
0:00:11.7]} 69. Nh6+ {[%clk 0:00:59]} 69... Kg7 {[%clk 0:00:10.5]} 70. Nxg8
{[%clk 0:01:00.9]} 70... Kxg8 {[%clk 0:00:12.1]} 71. Kf5 {[%clk 0:01:02.7]}
71... Kf7 {[%clk 0:00:13.3]} 72. Kg4 {[%clk 0:01:02.5]} 72... Nc4 {[%clk
0:00:13.7]} 73. Bc5 {[%clk 0:01:02.7]} 73... Nd2 {[%clk 0:00:13.6]} 74. h4
{[%clk 0:01:03.1]} 74... Ne4 {[%clk 0:00:14.8]} 75. Be3 {[%clk 0:01:04.4]} 75...
Nd6 {[%clk 0:00:12.2]} 76. h5 {[%clk 0:01:05.1]} 76... Kg7 {[%clk 0:00:11.5]}
77. f5 {[%clk 0:01:03.8]} 77... Kh7 {[%clk 0:00:07.7]} 78. Bf4 {[%clk
0:01:03.4]} 78... Nf7 {[%clk 0:00:08.7]} 79. Be3 {[%clk 0:01:02.8]} 79... Kg7
{[%clk 0:00:07.6]} 80. Bc5 {[%clk 0:01:00.3]} 80... Kh7 {[%clk 0:00:08.7]} 81.
Bf8 {[%clk 0:01:00.9]} 81... Nh6+ {[%clk 0:00:08.4]} 82. Kf4 {[%clk 0:01:02.1]}
82... Nf7 {[%clk 0:00:09.7]} 83. Bb4 {[%clk 0:01:02.8]} 83... Bg5+ {[%clk
0:00:08.7]} 84. Kg4 {[%clk 0:01:03.3]} 84... Bf6 {[%clk 0:00:10]} 85. Bf8 {[%clk
0:01:04.4]} 85... Nh6+ {[%clk 0:00:09.6]} 86. Kf4 {[%clk 0:01:05.9]} 86... Nf7
{[%clk 0:00:10.3]} 87. Ke4 {[%clk 0:01:07.8]} 87... Bg7 {[%clk 0:00:10.6]} 88.
Bxg7 {[%clk 0:00:50.5]} 88... Kxg7 {[%clk 0:00:12.5]} 89. Kd5 {[%clk 0:00:52.1]}
89... Kf6 {[%clk 0:00:12.7]} 90. Ke4 {[%clk 0:00:50.6]} 90... Nd6+ {[%clk
0:00:13.9]} 91. Kf4 {[%clk 0:00:51.4]} 91... Nxf5 {[%clk 0:00:15.8]} 92. h6
{[%clk 0:00:51.1]} 92... Nxh6 {[%clk 0:00:16.8]} 1/2-1/2

[Event "*** Titled Tuesday Blitz"]
[Site "Chess.com"]
[Date "2018.05.01"]
[Round "3"]
[White "Sven_Tica"]
[Black "MikaelyanArman"]
[Result "1-0"]
[WhiteElo "2639"]
[BlackElo "2617"]
[TimeControl "180+2"]
[EndTime "13:43:30 PDT"]
[Termination "Sven_Tica won by checkmate"]

1. d4 {[%clk 0:03:01.9]} 1... d5 {[%clk 0:02:59.9]} 2. c4 {[%clk 0:03:01.7]}
2... c6 {[%clk 0:03:01]} 3. Nf3 {[%clk 0:03:02.7]} 3... Nf6 {[%clk 0:03:01.5]}
4. e3 {[%clk 0:03:04.1]} 4... e6 {[%clk 0:03:01.1]} 5. b3 {[%clk 0:03:04.9]}
5... c5 {[%clk 0:03:02]} 6. Bb2 {[%clk 0:03:04.7]} 6... cxd4 {[%clk 0:02:59.3]}
7. exd4 {[%clk 0:03:05.7]} 7... Nc6 {[%clk 0:02:59.3]} 8. Be2 {[%clk 0:03:03.9]}
8... Be7 {[%clk 0:02:58.4]} 9. O-O {[%clk 0:03:04.4]} 9... O-O {[%clk
0:02:59.2]} 10. Ne5 {[%clk 0:03:05.1]} 10... dxc4 {[%clk 0:02:53.8]} 11. Nxc6
{[%clk 0:03:03.4]} 11... bxc6 {[%clk 0:02:55.7]} 12. Bxc4 {[%clk 0:02:50.8]}
12... Nd5 {[%clk 0:02:45.8]} 13. Nc3 {[%clk 0:02:48.7]} 13... a5 {[%clk
0:02:39.5]} 14. Ne4 {[%clk 0:02:47]} 14... a4 {[%clk 0:02:35.6]} 15. Qe2 {[%clk
0:02:43.1]} 15... a3 {[%clk 0:02:31.5]} 16. Bc1 {[%clk 0:02:39.1]} 16... Qb6
{[%clk 0:02:32.1]} 17. Be3 {[%clk 0:02:39.1]} 17... Nxe3 {[%clk 0:02:27.3]} 18.
Qxe3 {[%clk 0:02:38.8]} 18... Ba6 {[%clk 0:02:16.6]} 19. Rac1 {[%clk 0:02:38.3]}
19... Rfd8 {[%clk 0:02:00.6]} 20. Bxa6 {[%clk 0:02:28.1]} 20... Rxa6 {[%clk
0:01:55.4]} 21. Rc4 {[%clk 0:02:29.3]} 21... Ra5 {[%clk 0:01:35.8]} 22. Nc5
{[%clk 0:01:57.3]} 22... Rb5 {[%clk 0:01:34.5]} 23. Rfc1 {[%clk 0:01:54]} 23...
Bxc5 {[%clk 0:01:14.5]} 24. dxc5 {[%clk 0:01:51.3]} 24... Qb8 {[%clk 0:01:08.3]}
25. g3 {[%clk 0:01:52]} 25... h6 {[%clk 0:01:01.6]} 26. Ra4 {[%clk 0:01:52.9]}
26... Rb4 {[%clk 0:00:53.1]} 27. Rxa3 {[%clk 0:01:51.6]} 27... Qb5 {[%clk
0:00:52.1]} 28. Ra7 {[%clk 0:01:49]} 28... Rbd4 {[%clk 0:00:52.5]} 29. Qf3
{[%clk 0:01:45.8]} 29... R4d7 {[%clk 0:00:52]} 30. Rxd7 {[%clk 0:01:41]} 30...
Rxd7 {[%clk 0:00:53.9]} 31. Rc4 {[%clk 0:01:41.1]} 31... Qa5 {[%clk 0:00:51.4]}
32. Qe2 {[%clk 0:01:40.2]} 32... Rd2 {[%clk 0:00:50.7]} 33. Ra4 {[%clk
0:01:20.3]} 33... Qc3 {[%clk 0:00:43.3]} 34. Qe4 {[%clk 0:01:17.3]} 34... g6
{[%clk 0:00:38.8]} 35. Ra7 {[%clk 0:01:03.5]} 35... Qxc5 {[%clk 0:00:34.1]} 36.
Ra8+ {[%clk 0:00:54.8]} 36... Kg7 {[%clk 0:00:35.1]} 37. Qf4 {[%clk 0:00:52.1]}
37... Rd1+ {[%clk 0:00:33.9]} 38. Kg2 {[%clk 0:00:53.1]} 38... Qd5+ {[%clk
0:00:35.2]} 39. Kh3 {[%clk 0:00:51.1]} 39... Rd4 {[%clk 0:00:35.8]} 40. Qb8
{[%clk 0:00:40.5]} 40... Qf5+ {[%clk 0:00:32.1]} 41. Kg2 {[%clk 0:00:41.1]}
41... Qe4+ {[%clk 0:00:31.2]} 42. Kh3 {[%clk 0:00:42.3]} 42... Kf6 {[%clk
0:00:18.9]} 43. Qh8+ {[%clk 0:00:36.7]} 43... Kg5 {[%clk 0:00:19.5]} 44. f4+
{[%clk 0:00:30]} 44... Kf5 {[%clk 0:00:14.9]} 45. Qxh6 {[%clk 0:00:17.9]} 45...
Qf3 {[%clk 0:00:16]} 46. Qg5+ {[%clk 0:00:12.3]} 46... Ke4 {[%clk 0:00:17.1]}
47. Qe5+ {[%clk 0:00:14.2]} 47... Kd3 {[%clk 0:00:18.1]} 48. Ra4 {[%clk
0:00:14.8]} 48... Qf1+ {[%clk 0:00:14.6]} 49. Kh4 {[%clk 0:00:14.7]} 49... Rxa4
{[%clk 0:00:13.3]} 50. bxa4 {[%clk 0:00:15]} 50... Qf2 {[%clk 0:00:13.3]} 51. h3
{[%clk 0:00:12.8]} 51... Qxa2 {[%clk 0:00:13.4]} 52. a5 {[%clk 0:00:13.1]} 52...
Qa4 {[%clk 0:00:12.1]} 53. Qc5 {[%clk 0:00:13.9]} 53... f6 {[%clk 0:00:11.2]}
54. Qd6+ {[%clk 0:00:13.1]} 54... Kc2 {[%clk 0:00:11.6]} 55. Qxe6 {[%clk
0:00:13.9]} 55... g5+ {[%clk 0:00:12.5]} 56. Kg4 {[%clk 0:00:14.6]} 56... gxf4
{[%clk 0:00:12]} 57. gxf4 {[%clk 0:00:15.7]} 57... c5 {[%clk 0:00:11.3]} 58. a6
{[%clk 0:00:15.4]} 58... c4 {[%clk 0:00:12.5]} 59. a7 {[%clk 0:00:15.5]} 59...
Qxa7 {[%clk 0:00:12]} 60. Qxc4+ {[%clk 0:00:16.7]} 60... Kd2 {[%clk 0:00:12.7]}
61. Qd5+ {[%clk 0:00:18]} 61... Ke3 {[%clk 0:00:07.7]} 62. Qe6+ {[%clk
0:00:18.1]} 62... Kf2 {[%clk 0:00:08.8]} 63. Qxf6 {[%clk 0:00:18.7]} 63... Qd7+
{[%clk 0:00:09.8]} 64. f5 {[%clk 0:00:19.4]} 64... Qd1+ {[%clk 0:00:09.9]} 65.
Kg5 {[%clk 0:00:20]} 65... Qd2+ {[%clk 0:00:10.5]} 66. Kg6 {[%clk 0:00:21.2]}
66... Qd7 {[%clk 0:00:09.2]} 67. Qh4+ {[%clk 0:00:20.8]} 67... Ke3 {[%clk
0:00:08.6]} 68. Qg3+ {[%clk 0:00:21.8]} 68... Ke4 {[%clk 0:00:08.7]} 69. Qg4+
{[%clk 0:00:23.2]} 69... Ke5 {[%clk 0:00:09.4]} 70. f6 {[%clk 0:00:24.8]} 70...
Qd3+ {[%clk 0:00:08.8]} 71. Kg7 {[%clk 0:00:24.8]} 71... Kd6 {[%clk 0:00:09.1]}
72. f7 {[%clk 0:00:24.4]} 72... Qc3+ {[%clk 0:00:10]} 73. Kg8 {[%clk 0:00:25.5]}
73... Qb3 {[%clk 0:00:11.2]} 74. Qf4+ {[%clk 0:00:23.6]} 74... Ke7 {[%clk
0:00:11.1]} 75. Qe5+ {[%clk 0:00:22.8]} 75... Kd7 {[%clk 0:00:12.2]} 76. Qe8+
{[%clk 0:00:23.5]} 76... Kd6 {[%clk 0:00:13]} 77. Qd8+ {[%clk 0:00:24.5]} 77...
Kc6 {[%clk 0:00:12.8]} 78. h4 {[%clk 0:00:23.9]} 78... Qg3+ {[%clk 0:00:11.2]}
79. Qg5 {[%clk 0:00:24.9]} 79... Qb3 {[%clk 0:00:11.8]} 80. h5 {[%clk 0:00:26]}
80... Kd7 {[%clk 0:00:13]} 81. h6 {[%clk 0:00:26.1]} 81... Qe6 {[%clk
0:00:04.6]} 82. h7 {[%clk 0:00:22.8]} 82... Qb3 {[%clk 0:00:05.2]} 83. h8=Q
{[%clk 0:00:22.1]} 83... Qb8+ {[%clk 0:00:05.4]} 84. Kg7 {[%clk 0:00:18.5]}
84... Qb2+ {[%clk 0:00:05.3]} 85. Kh7 {[%clk 0:00:19.4]} 85... Qh2+ {[%clk
0:00:05.8]} 86. Qh6 {[%clk 0:00:20.6]} 86... Qc2+ {[%clk 0:00:06]} 87. Qg6
{[%clk 0:00:21.6]} 87... Qh2+ {[%clk 0:00:06.7]} 88. Kg8 {[%clk 0:00:23]} 88...
Qb8+ {[%clk 0:00:06.8]} 89. f8=N+ {[%clk 0:00:23.8]} 89... Ke7 {[%clk
0:00:05.4]} 90. Qhf6# {[%clk 0:00:23.3]} 1-0

[Event "*** Titled Tuesday Blitz"]
[Site "Chess.com"]
[Date "2018.05.01"]
[Round "3"]
[White "Jospem"]
[Black "maciek_92"]
[Result "0-1"]
[WhiteElo "2682"]
[BlackElo "2596"]
[TimeControl "180+2"]
[EndTime "13:43:42 PDT"]
[Termination "maciek_92 won by resignation"]

1. e4 {[%clk 0:02:58.6]} 1... c5 {[%clk 0:03:00.5]} 2. Nf3 {[%clk 0:02:58.6]}
2... Nc6 {[%clk 0:03:01.1]} 3. Bb5 {[%clk 0:02:58.1]} 3... g6 {[%clk 0:03:02.5]}
4. Bxc6 {[%clk 0:02:56.8]} 4... bxc6 {[%clk 0:03:04.4]} 5. O-O {[%clk 0:02:58]}
5... Bg7 {[%clk 0:03:05.2]} 6. Re1 {[%clk 0:02:59.6]} 6... Rb8 {[%clk
0:02:57.1]} 7. Nc3 {[%clk 0:02:53.9]} 7... e5 {[%clk 0:02:55.9]} 8. a3 {[%clk
0:02:50.7]} 8... Ne7 {[%clk 0:02:55.8]} 9. b4 {[%clk 0:02:50.8]} 9... c4 {[%clk
0:02:42.8]} 10. d4 {[%clk 0:02:43.3]} 10... cxd3 {[%clk 0:02:41.9]} 11. Nd4
{[%clk 0:02:45.2]} 11... exd4 {[%clk 0:02:42.4]} 12. Na4 {[%clk 0:02:43.8]}
12... dxc2 {[%clk 0:02:41.5]} 13. Qd3 {[%clk 0:02:44.7]} 13... O-O {[%clk
0:02:40.9]} 14. Bb2 {[%clk 0:02:45.8]} 14... d5 {[%clk 0:02:35.7]} 15. Qxc2
{[%clk 0:02:45.8]} 15... dxe4 {[%clk 0:02:36]} 16. Qxe4 {[%clk 0:02:46.8]} 16...
Be6 {[%clk 0:02:31.9]} 17. Nc5 {[%clk 0:02:41.6]} 17... Qd5 {[%clk 0:02:32.2]}
18. Qf4 {[%clk 0:02:34.7]} 18... Rbc8 {[%clk 0:01:52.5]} 19. Rad1 {[%clk
0:02:34.1]} 19... Rfd8 {[%clk 0:01:50.3]} 20. Nb7 {[%clk 0:02:29.7]} 20... Rf8
{[%clk 0:01:34.8]} 21. Bxd4 {[%clk 0:02:14.8]} 21... Bxd4 {[%clk 0:01:34.9]} 22.
Rxd4 {[%clk 0:02:16.7]} 22... Qf5 {[%clk 0:01:32.7]} 23. Qd2 {[%clk 0:02:16.1]}
23... Rb8 {[%clk 0:01:25.6]} 24. Nd6 {[%clk 0:02:16.2]} 24... Qh5 {[%clk
0:01:22.4]} 25. Ne4 {[%clk 0:02:11.7]} 25... Qe5 {[%clk 0:01:05.1]} 26. Nc5
{[%clk 0:01:46.1]} 26... Qf6 {[%clk 0:01:00.3]} 27. Ne4 {[%clk 0:01:46.1]} 27...
Qg7 {[%clk 0:01:00.7]} 28. Rd6 {[%clk 0:01:36.4]} 28... Nf5 {[%clk 0:00:56.8]}
29. Rxc6 {[%clk 0:01:34.1]} 29... Rfd8 {[%clk 0:00:58.2]} 30. Qg5 {[%clk
0:01:33.4]} 30... h6 {[%clk 0:00:55.6]} 31. Qf4 {[%clk 0:01:26.6]} 31... Nd4
{[%clk 0:00:48.9]} 32. Rcc1 {[%clk 0:01:24]} 32... Bf5 {[%clk 0:00:40.4]} 33.
Ng3 {[%clk 0:01:07.4]} 33... Ne6 {[%clk 0:00:32.6]} 34. Qe3 {[%clk 0:01:05.3]}
34... Bd3 {[%clk 0:00:31.8]} 35. Qxa7 {[%clk 0:01:03.1]} 35... Ra8 {[%clk
0:00:32.1]} 36. Qb6 {[%clk 0:01:04]} 36... Qd4 {[%clk 0:00:32.4]} 37. Qxd4
{[%clk 0:00:30.7]} 37... Nxd4 {[%clk 0:00:22.2]} 38. Rc3 {[%clk 0:00:28.7]}
38... Ne6 {[%clk 0:00:23.2]} 39. h4 {[%clk 0:00:24.8]} 39... h5 {[%clk
0:00:23.7]} 40. Re5 {[%clk 0:00:23.6]} 40... Rd6 {[%clk 0:00:19]} 41. Kh2 {[%clk
0:00:22.4]} 41... Kg7 {[%clk 0:00:18]} 42. Re3 {[%clk 0:00:22.5]} 42... Bb5
{[%clk 0:00:18.5]} 43. Ne4 {[%clk 0:00:22.6]} 43... Rd4 {[%clk 0:00:19.5]} 44.
f3 {[%clk 0:00:20.9]} 44... Rad8 {[%clk 0:00:19.8]} 45. Kg3 {[%clk 0:00:21.2]}
45... Rd1 {[%clk 0:00:19.4]} 46. Nf2 {[%clk 0:00:21.5]} 46... R1d5 {[%clk
0:00:19.4]} 47. Kh2 {[%clk 0:00:21.6]} 47... Nd4 {[%clk 0:00:20.3]} 48. Rc7
{[%clk 0:00:20.2]} 48... Nf5 {[%clk 0:00:21.3]} 49. Re4 {[%clk 0:00:20.5]} 49...
Rd2 {[%clk 0:00:21]} 50. Nh3 {[%clk 0:00:21.7]} 50... Bf1 {[%clk 0:00:21.5]} 51.
Nf4 {[%clk 0:00:22.8]} 51... R8d7 {[%clk 0:00:20.5]} 52. Rxd7 {[%clk 0:00:21.9]}
52... Rxd7 {[%clk 0:00:22.4]} 53. a4 {[%clk 0:00:20.2]} 53... Rd2 {[%clk
0:00:22.9]} 54. Kg1 {[%clk 0:00:19.8]} 54... Ba6 {[%clk 0:00:20.6]} 55. b5
{[%clk 0:00:20.7]} 55... Bb7 {[%clk 0:00:21.9]} 56. Rb4 {[%clk 0:00:20.3]} 56...
Ra2 {[%clk 0:00:17.4]} 57. Nd3 {[%clk 0:00:14.9]} 57... Ne3 {[%clk 0:00:17.8]}
58. Nf4 {[%clk 0:00:14.9]} 58... f6 {[%clk 0:00:18.1]} 59. Rd4 {[%clk
0:00:14.6]} 59... Kh6 {[%clk 0:00:18.8]} 60. Rd7 {[%clk 0:00:13.9]} 60... Bc8
{[%clk 0:00:17.9]} 61. Rd8 {[%clk 0:00:10.7]} 61... Bf5 {[%clk 0:00:18]} 62. Re8
{[%clk 0:00:10.3]} 62... Nc4 {[%clk 0:00:15.1]} 63. Nd5 {[%clk 0:00:09.8]} 63...
Rxa4 {[%clk 0:00:13.7]} 64. Nxf6 {[%clk 0:00:10.2]} 64... Ra1+ {[%clk
0:00:14.2]} 65. Kh2 {[%clk 0:00:11]} 65... Rb1 {[%clk 0:00:15.2]} 66. Re7 {[%clk
0:00:11.8]} 66... g5 {[%clk 0:00:15.4]} 67. hxg5+ {[%clk 0:00:09.7]} 67... Kxg5
{[%clk 0:00:17.3]} 68. Ne4+ {[%clk 0:00:09.1]} 68... Kg6 {[%clk 0:00:15.9]} 69.
Nc3 {[%clk 0:00:09.3]} 69... Rb2 {[%clk 0:00:14.8]} 70. Re2 {[%clk 0:00:03.5]}
70... Rb3 {[%clk 0:00:14.5]} 71. Nd5 {[%clk 0:00:04.6]} 71... Rxb5 {[%clk
0:00:13.5]} 72. Nf4+ {[%clk 0:00:05.7]} 72... Kg5 {[%clk 0:00:13.2]} 73. g3
{[%clk 0:00:06.8]} 73... Rb3 {[%clk 0:00:12]} 74. Kg2 {[%clk 0:00:04.9]} 74...
Bd7 {[%clk 0:00:10.3]} 75. Re7 {[%clk 0:00:03.1]} 75... Bc6 {[%clk 0:00:10.7]}
76. Ne6+ {[%clk 0:00:03.1]} 76... Kf6 {[%clk 0:00:10.8]} 77. Rc7 {[%clk
0:00:03.8]} 77... Bxf3+ {[%clk 0:00:10.9]} 78. Kf2 {[%clk 0:00:05.2]} 78... Ne5
{[%clk 0:00:11.5]} 79. Nd4 {[%clk 0:00:05.1]} 79... Ng4+ {[%clk 0:00:12.4]} 80.
Ke1 {[%clk 0:00:05.8]} 80... Rb1+ {[%clk 0:00:13.1]} 81. Kd2 {[%clk 0:00:06.2]}
81... Rd1+ {[%clk 0:00:13.9]} 82. Kc3 {[%clk 0:00:07.1]} 82... Rc1+ {[%clk
0:00:15.2]} 83. Nc2 {[%clk 0:00:07.5]} 83... Be4 {[%clk 0:00:16.4]} 84. Kd4
{[%clk 0:00:08]} 84... Rxc2 {[%clk 0:00:16.1]} 85. Ra7 {[%clk 0:00:04.3]} 85...
Bf5 {[%clk 0:00:16.4]} 86. Ra6+ {[%clk 0:00:03.5]} 86... Kg5 {[%clk 0:00:17.6]}
87. Ra5 {[%clk 0:00:04]} 87... Rg2 {[%clk 0:00:18.4]} 88. Ra8 {[%clk 0:00:03.9]}
88... Rxg3 {[%clk 0:00:19]} 89. Rg8+ {[%clk 0:00:05.8]} 89... Bg6 {[%clk
0:00:19.9]} 0-1

[Event "*** Titled Tuesday Blitz"]
[Site "Chess.com"]
[Date "2018.05.01"]
[Round "4"]
[White "aa175"]
[Black "gmcorrales"]
[Result "0-1"]
[WhiteElo "1863"]
[BlackElo "2731"]
[TimeControl "180+2"]
[EndTime "13:46:22 PDT"]
[Termination "gmcorrales won by resignation"]

1. e4 {[%clk 0:03:01.9]} 1... h6 {[%clk 0:03:00.5]} 2. Nc3 {[%clk 0:03:02.1]}
2... a6 {[%clk 0:03:01.8]} 3. d4 {[%clk 0:03:03.1]} 3... b5 {[%clk 0:03:02.8]}
4. a3 {[%clk 0:03:02.7]} 4... d6 {[%clk 0:03:04.2]} 5. Nf3 {[%clk 0:03:03.7]}
5... Bb7 {[%clk 0:03:05.3]} 6. Bf4 {[%clk 0:03:04.5]} 6... e6 {[%clk 0:03:06.3]}
7. Be2 {[%clk 0:03:01.8]} 7... g5 {[%clk 0:03:07.4]} 8. Bg3 {[%clk 0:03:02]}
8... Bg7 {[%clk 0:03:08.3]} 9. h4 {[%clk 0:03:02.5]} 9... g4 {[%clk 0:03:09.5]}
10. Nd2 {[%clk 0:03:03]} 10... h5 {[%clk 0:03:10.8]} 11. Nb3 {[%clk 0:03:03.4]}
11... Ne7 {[%clk 0:03:08.9]} 12. Na5 {[%clk 0:03:02.4]} 12... Bc8 {[%clk
0:03:09.7]} 13. b4 {[%clk 0:02:58.5]} 13... Nbc6 {[%clk 0:03:09.8]} 14. Nxc6
{[%clk 0:02:58.7]} 14... Nxc6 {[%clk 0:03:11.7]} 15. O-O {[%clk 0:02:45.2]}
15... Nxd4 {[%clk 0:03:11]} 16. e5 {[%clk 0:02:42.5]} 16... dxe5 {[%clk
0:03:09.6]} 17. Ne4 {[%clk 0:02:42.7]} 17... f5 {[%clk 0:02:57.5]} 18. Nc5
{[%clk 0:02:41.2]} 18... f4 {[%clk 0:02:57.5]} 19. Bh2 {[%clk 0:02:39.7]} 19...
Qxh4 {[%clk 0:02:58.1]} 20. c3 {[%clk 0:02:37.1]} 20... Nxe2+ {[%clk 0:02:54.2]}
21. Qxe2 {[%clk 0:02:37.8]} 21... O-O {[%clk 0:02:53.5]} 22. g3 {[%clk
0:02:33.4]} 22... Qh3 {[%clk 0:02:49.3]} 23. Qe4 {[%clk 0:02:32.5]} 23... f3
{[%clk 0:02:50]} 0-1

[Event "*** Titled Tuesday Blitz"]
[Site "Chess.com"]
[Date "2018.05.01"]
[Round "4"]
[White "Kawhi_Leonard2"]
[Black "b_6"]
[Result "1-0"]
[WhiteElo "2166"]
[BlackElo "2292"]
[TimeControl "180+2"]
[EndTime "13:47:13 PDT"]
[Termination "Kawhi_Leonard2 won by resignation"]

1. e4 {[%clk 0:03:01.9]} 1... e6 {[%clk 0:02:52.6]} 2. d4 {[%clk 0:03:02.1]}
2... d5 {[%clk 0:02:53.6]} 3. Nd2 {[%clk 0:03:03.4]} 3... Be7 {[%clk 0:02:54.4]}
4. Bd3 {[%clk 0:03:02.3]} 4... c5 {[%clk 0:02:55.2]} 5. Ngf3 {[%clk 0:02:57.4]}
5... cxd4 {[%clk 0:02:48.6]} 6. Nxd4 {[%clk 0:02:57]} 6... dxe4 {[%clk
0:02:45.6]} 7. Nxe4 {[%clk 0:02:57.4]} 7... Nf6 {[%clk 0:02:46.8]} 8. O-O {[%clk
0:02:52.8]} 8... O-O {[%clk 0:02:41.5]} 9. c3 {[%clk 0:02:50.9]} 9... Nbd7
{[%clk 0:02:33.9]} 10. Qc2 {[%clk 0:02:51]} 10... Nxe4 {[%clk 0:02:20.9]} 11.
Bxe4 {[%clk 0:02:52.9]} 11... Nf6 {[%clk 0:02:21.9]} 12. Bf3 {[%clk 0:02:51]}
12... e5 {[%clk 0:02:17.7]} 13. Nf5 {[%clk 0:02:50.8]} 13... Bxf5 {[%clk
0:02:08.2]} 14. Qxf5 {[%clk 0:02:51.7]} 14... Qc7 {[%clk 0:02:09.8]} 15. Be3
{[%clk 0:02:48.5]} 15... Rfd8 {[%clk 0:01:59.7]} 16. Rfd1 {[%clk 0:02:48.6]}
16... h6 {[%clk 0:01:51.5]} 17. g3 {[%clk 0:02:48.6]} 17... a6 {[%clk
0:01:50.9]} 18. a4 {[%clk 0:02:41.4]} 18... b5 {[%clk 0:01:34.6]} 19. Bxa8
{[%clk 0:02:38.6]} 19... Rxa8 {[%clk 0:01:34.1]} 20. axb5 {[%clk 0:02:39]} 1-0